lending/lending_fUSD_20260211
["ID","MTS","AMOUNT","RATE_DAILY","PERIOD"]
[405113929,1770849041295,-203.88,0.0001519,2]
[405113930,1770849041304,-8775.20129589,0.00015289,2]
[405113931,1770849041314,-1405.25891873,0.00015289,2]
[405113932,1770849041324,-166.66,0.00015294,2]
[405113933,1770849041334,-502.8723553,0.0001555,2]
[405113934,1770849041344,-3361.04483211,0.0001555,2]
[405113935,1770849041354,-376.65221622,0.0001555,2]
[405113936,1770849041363,-198729.09912414,0.0001561,2]
[405113937,1770849041373,-167.02062498,0.0001565,2]
[405113938,1770849041384,-166.66,0.0001574,2]
[405113939,1770849041394,-240.0,0.00015751,2]
[405113940,1770849041405,-338.45,0.00015753,2]
[405113941,1770849041415,-1064.70464756,0.00015782,2]
[405113942,1770849041425,-217.0,0.00015787,2]
[405113943,1770849041435,-8775.20129589,0.00015811,2]
[405113944,1770849041445,-1405.25891873,0.00015811,2]
[405113945,1770849041455,-2351.0,0.0001585,2]
[405113946,1770849041466,-165.0,0.00015888,2]
[405113947,1770849041476,-1900.0,0.00016082,2]
[405113948,1770849041486,-8775.20129589,0.00016333,2]
[405113949,1770849041496,-1405.25891873,0.00016333,2]
[405113950,1770849041506,-500.0,0.00016356,2]
[405113951,1770849041516,-500.0,0.00016356,2]
[405113952,1770849041526,-2829.0,0.000164,2]
[405113953,1770849041536,-1359.1,0.00016438,2]
[405113954,1770849041546,-338.45,0.00016438,2]
[405113955,1770849041556,-500.0,0.00016466,2]
[405113956,1770849041566,-160.0,0.00016564,2]
[405113957,1770849041576,-250.0,0.00016564,2]
[405113958,1770849041586,-841.0,0.0001672,2]
[405113959,1770849041596,-167.02062498,0.00016775,2]
[405113960,1770849041606,-8775.20129589,0.00016856,2]
[405113961,1770849041617,-1405.25891873,0.00016856,2]
[405113962,1770849041627,-165.72983817,0.00016886,2]
[405113963,1770849041637,-1359.1,0.00016944,2]
[405113964,1770849041646,-411.55774058,0.00017099,2]
[405113965,1770849041658,-2829.0,0.0001736,2]
[405113966,1770849041668,-8775.20129589,0.00017378,2]
[405113967,1770849041677,-1405.25891873,0.00017378,2]
[405113968,1770849041687,-2000.0,0.000174,2]
[405113969,1770849041697,-3292.0,0.00017435,2]
[405113970,1770849041706,-1359.1,0.0001745,2]
[405113971,1770849041716,-1900.0,0.00017452,7]
[405113972,1770849041725,-1000.0,0.00017534,2]
[405113973,1770849041735,-1273.0,0.00017553,2]
[405113974,1770849041745,-150.0,0.00017553,2]
[405113975,1770849041755,-918.0,0.00017553,2]
[405113976,1770849041764,-1207.0,0.00017553,2]
[405113977,1770849041774,-3487.0,0.00017553,2]
[405113978,1770849041784,-617.0,0.00017553,2]
[405113979,1770849041794,-4189.81873464,0.0001764,2]
[405113980,1770849041804,-2000.0,0.000177,2]
[405113981,1770849041813,-500.0,0.00017726,7]
[405113982,1770849041823,-150.0,0.0001773,2]
[405113983,1770849041832,-150.0,0.00017737,2]
[405113984,1770849041843,-150.0,0.0001774,2]
[405113985,1770849042080,-150.0,0.00017754,2]
[405113986,1770849042091,-150.0,0.00017762,2]
[405113987,1770849042102,-12819.6590041,0.00017763,2]
[405113988,1770849042112,-469437.8428581,0.00017763,2]
[405113989,1770849042122,-30536.4825461,0.00017763,2]
[405113990,1770849042131,-150.0,0.00017771,2]
[405113991,1770849042142,-150.0,0.00017779,2]
[405113992,1770849042151,-150.0,0.00017799,2]
[405113993,1770849042164,-150.0,0.000178,2]
[405113994,1770849042174,-150.0,0.00017801,2]
[405113995,1770849042184,-150.0,0.00017803,2]
[405113996,1770849042195,-775.76288008,0.00017808,2]
[405113997,1770849042207,-775.76288008,0.00017808,2]
[405113998,1770849042216,-775.76288008,0.00017808,2]
[405113999,1770849042226,-775.76288008,0.00017808,2]
[405114000,1770849042237,-775.76288008,0.00017808,2]
[405114001,1770849042247,-775.76288008,0.00017808,2]
[405114002,1770849042257,-775.76288008,0.00017808,2]
[405114003,1770849042267,-775.76288008,0.00017808,2]
[405114004,1770849042277,-775.76288008,0.00017808,2]
[405114005,1770849042287,-775.76288008,0.00017808,2]
[405114006,1770849042296,-775.76288008,0.00017808,2]
[405114007,1770849042306,-775.76288008,0.00017808,2]
[405114008,1770849042315,-775.76288008,0.00017808,2]
[405114009,1770849042325,-775.76288008,0.00017808,2]
[405114010,1770849042335,-775.76288008,0.00017808,2]
[405114011,1770849042344,-833.94509609,0.00017808,2]
[405114012,1770849042354,-833.94509609,0.00017808,2]
[405114013,1770849042364,-833.94509609,0.00017808,2]
[405114014,1770849042374,-833.94509609,0.00017808,2]
[405114015,1770849042384,-833.94509609,0.00017808,2]
[405114016,1770849042393,-833.94509609,0.00017808,2]
[405114017,1770849042403,-833.94509609,0.00017808,2]
[405114018,1770849042413,-806.40551384,0.00017808,2]
[405114019,1770849042423,-806.40551384,0.00017808,2]
[405114020,1770849042434,-806.40551384,0.00017808,2]
[405114021,1770849042443,-500.0,0.00017808,2]
[405114022,1770849042453,-1199.9,0.00017808,2]
[405114023,1770849042463,-1000.0,0.00017808,2]
[405114024,1770849042473,-287.30101856,0.00017813,2]
[405114025,1770849042483,-150.0,0.00017814,2]
[405114026,1770849042493,-150.0,0.00017814,2]
[405114027,1770849042503,-2000.0,0.0001782,2]
[405114028,1770849042513,-2000.0,0.0001782,2]
[405114029,1770849042523,-150.0,0.0001782,2]
[405114030,1770849042532,-150.0,0.00017824,2]
[405114031,1770849042541,-150.0,0.00017826,2]
[405114032,1770849042552,-100476.39903326,0.0001783,2]
[405114033,1770849042562,-150.0,0.00017833,2]
[405114034,1770849042571,-150.0,0.00017837,2]
[405114035,1770849042581,-150.0,0.00017847,2]
[405114036,1770849042590,-150.0,0.00017847,2]
[405114037,1770849042600,-150.0,0.00017849,2]
[405114039,1770849042610,-200.0,0.00017856,2]
[405114041,1770849042620,-500.0,0.00017863,2]
[405114042,1770849042630,-150.0,0.00017871,2]
[405114043,1770849042640,-150.0,0.00017872,2]
[405114044,1770849042649,-150.0,0.00017874,2]
[405114045,1770849042659,-150.0,0.00017875,2]
[405114046,1770849042669,-150.0,0.00017887,2]
[405114047,1770849042680,-150.0,0.00017888,2]
[405114048,1770849042690,-150.0,0.00017889,2]
[405114049,1770849042699,-150.0,0.00017892,2]
[405114050,1770849042708,-150.0,0.00017899,2]
[405114051,1770849042718,-222.37304921,0.000179,2]
[405114052,1770849042728,-4642.3711,0.000179,2]
[405114053,1770849042738,-3064.7162,0.000179,2]
[405114054,1770849042747,-167.02062498,0.000179,2]
[405114055,1770849042757,-8775.20129589,0.000179,2]
[405114056,1770849042766,-1405.25891873,0.000179,2]
[405114057,1770849042776,-502.8723553,0.000179,2]
[405114058,1770849042785,-3361.04483211,0.000179,2]
[405114059,1770849042794,-500.0,0.000179,2]
[405114060,1770849042804,-500.0,0.000179,2]
[405114061,1770849042814,-232.88924106,0.000179,2]
[405114062,1770849042823,-6402.0,0.000179,2]
[405114063,1770849042832,-150.0,0.00017912,2]
[405114064,1770849042842,-500.0,0.00017918,2]
[405114065,1770849042852,-150.0,0.00017924,2]
[405114066,1770849042862,-150.0,0.00017932,2]
[405114067,1770849042871,-150.0,0.00017941,2]
[405114068,1770849042881,-150.0,0.00017948,2]
[405114069,1770849042891,-150.0,0.00017953,2]
[405114070,1770849042900,-1359.1,0.00017955,2]
[405114071,1770849042910,-150.0,0.00017955,2]
[405114072,1770849042921,-150.0,0.00017966,2]
[405114073,1770849042931,-500.0,0.0001797,2]
[405114074,1770849042940,-500.0,0.0001797,2]
[405114075,1770849042950,-500.0,0.0001797,2]
[405114076,1770849042959,-500.0,0.0001797,2]
[405114077,1770849042969,-500.0,0.0001797,2]
[405114078,1770849042978,-700.0,0.0001797,2]
[405114079,1770849042987,-500.0,0.0001797,2]
[405114080,1770849042996,-700.0,0.0001797,2]
[405114081,1770849043006,-500.0,0.0001797,2]
[405114082,1770849043016,-706.22551575,0.0001797,2]
[405114083,1770849043026,-500.0,0.0001797,2]
[405114084,1770849043036,-614.74334455,0.0001797,2]
[405114085,1770849043045,-150.0,0.00017971,2]
[405114086,1770849043054,-500.0,0.00017972,2]
[405114087,1770849043064,-150.0,0.00017976,2]
[405114088,1770849043074,-150.0,0.00017982,2]
[405114089,1770849043084,-150.0,0.00017983,2]
[405114090,1770849043095,-150.0,0.00017992,2]
[405114091,1770849043105,-150.0,0.00017992,2]
[405114092,1770849043115,-300.0,0.00017999,2]
[405114093,1770849043124,-300.0,0.00017999,2]
[405114094,1770849043133,-298.32222226,0.00017999,2]
[405114095,1770849043143,-666.0,0.00017999,2]
[405114096,1770849043153,-300.0,0.00017999,2]
[405114097,1770849043166,-300.0,0.00017999,2]
[405114098,1770849043175,-666.0,0.00017999,2]
[405114099,1770849043184,-300.0,0.00017999,2]
[405114100,1770849043194,-666.0,0.00017999,2]
[405114101,1770849043207,-266.4455033,0.00017999,2]
[405114102,1770849043218,-3495687.44908352,0.00018,2]
[405114120,1770849046819,-376.65221622,0.000179,2]
[405114121,1770849046838,-183.34778378,0.00018,2]
[405114126,1770849189139,2000.0,0.0003561,120]
[405114134,1770849423460,156.96,0.00011208,2]
[405114135,1770849423728,156.96,0.00011742,2]
[405114136,1770849423821,156.96,0.00012275,2]
[405114146,1770849801570,151.0,0.00035616,120]
[405114198,1770849949086,450.0,0.0003561,120]
[405114219,1770850073667,843.6,0.00012336,2]
[405114229,1770850223642,5803.36308293,0.00035616,120]
[405114237,1770850231917,-2109.64631498,0.00012513,2]
[405114238,1770850231998,-572.84682148,0.00012513,2]
[405114239,1770850232011,-372.82686354,0.00012513,2]
[405114240,1770850232022,-581.11504961,0.0001255,2]
[405114249,1770850237981,-304.0,0.0001255,2]
[405114250,1770850237993,-706.55591932,0.0001255,2]
[405114251,1770850238040,-1227.00903107,0.0001255,2]
[405114252,1770850238051,-197.88912912,0.00012568,2]
[405114253,1770850238061,-1200.0,0.00012599,2]
[405114254,1770850238071,-244.58459098,0.000126,2]
[405114255,1770850238084,-301.33534557,0.000126,2]
[405114256,1770850238094,-315.52303421,0.000126,2]
[405114257,1770850238104,-789.12703957,0.000126,2]
[405114258,1770850238114,-2240.69655474,0.00012639,2]
[405114259,1770850238125,-473.38822936,0.00012639,2]
[405114260,1770850238135,-8805.48830098,0.00012639,2]
[405114261,1770850238146,-150.0,0.00012699,2]
[405114262,1770850238157,-300.0,0.00012699,2]
[405114263,1770850238168,-291.80897617,0.00012699,2]
[405114264,1770850238178,-227.09430741,0.00012699,2]
[405114265,1770850238189,-500.0,0.00012699,2]
[405114266,1770850238199,-373.5757225,0.00012699,2]
[405114267,1770850238210,-1459.95886722,0.00012699,2]
[405114268,1770850238220,-1459.95886722,0.00012699,2]
[405114269,1770850238231,-1459.95886722,0.00012699,2]
[405114270,1770850238243,-1459.95886722,0.00012699,2]
[405114271,1770850238254,-1459.95886722,0.00012699,2]
[405114272,1770850238265,-1459.95886722,0.00012699,2]
[405114273,1770850238275,-734.01206781,0.00012699,2]
[405114274,1770850238315,-725.94679941,0.00012699,2]
[405114275,1770850238327,-1459.95886722,0.00012699,2]
[405114276,1770850238337,-582.56789613,0.00012699,2]
[405114277,1770850238350,-837.35,0.00012699,2]
[405114278,1770850238381,-40.04097109,0.00012699,2]
[405114279,1770850238391,-569.96317108,0.00012699,2]
[405114297,1770850240068,-889.99569614,0.00012699,2]
[405114298,1770850240078,-32.18763804,0.00012699,2]
[405114299,1770850240103,-1427.77122918,0.00012699,2]
[405114300,1770850240113,-159.93977082,0.00012699,2]
[405114301,1770850240125,-500.0,0.00012699,2]
[405114302,1770850240136,-420.86114321,0.00012699,2]
[405114303,1770850240148,-379.15795319,0.00012699,2]
[405114304,1770850240158,-1459.95886722,0.00012699,2]
[405114305,1770850240168,-1459.95886722,0.00012699,2]
[405114306,1770850240178,-1459.95886722,0.00012699,2]
[405114307,1770850240188,-1459.95886722,0.00012699,2]
[405114308,1770850240198,-1459.95886722,0.00012699,2]
[405114309,1770850240208,-1459.95886722,0.00012699,2]
[405114310,1770850240217,-1459.95886722,0.00012699,2]
[405114311,1770850240227,-1459.95886722,0.00012699,2]
[405114312,1770850240237,-1459.95886722,0.00012699,2]
[405114313,1770850240248,-1459.95886722,0.00012699,2]
[405114314,1770850240258,-1459.95886722,0.00012699,2]
[405114315,1770850240268,-1459.95886722,0.00012699,2]
[405114316,1770850240278,-1459.95886722,0.00012699,2]
[405114317,1770850240289,-1459.95886722,0.00012699,2]
[405114318,1770850240299,-1459.95886722,0.00012699,2]
[405114319,1770850240309,-1459.95886722,0.00012699,2]
[405114320,1770850240320,-1459.95886722,0.00012699,2]
[405114321,1770850240330,-1459.95886722,0.00012699,2]
[405114322,1770850240340,-1459.95886722,0.00012699,2]
[405114323,1770850240350,-1459.95886722,0.00012699,2]
[405114324,1770850240361,-1459.95886722,0.00012699,2]
[405114325,1770850240371,-1459.95886722,0.00012699,2]
[405114326,1770850240381,-1459.95886722,0.00012699,2]
[405114328,1770850240390,-1459.95886722,0.00012699,2]
[405114329,1770850240400,-1459.95886722,0.00012699,2]
[405114330,1770850240409,-1459.95886722,0.00012699,2]
[405114331,1770850240419,-1459.95886722,0.00012699,2]
[405114332,1770850240429,-1459.95886722,0.00012699,2]
[405114333,1770850240439,-1459.95886722,0.00012699,2]
[405114334,1770850240449,-1459.95886722,0.00012699,2]
[405114335,1770850240459,-1459.95886722,0.00012699,2]
[405114336,1770850240470,-1459.95886722,0.00012699,2]
[405114337,1770850240480,-1459.95886722,0.00012699,2]
[405114338,1770850240491,-1459.95886722,0.00012699,2]
[405114339,1770850240502,-1459.95886722,0.00012699,2]
[405114340,1770850240512,-1459.95886722,0.00012699,2]
[405114341,1770850240521,-1459.95886722,0.00012699,2]
[405114342,1770850240532,-1459.95886722,0.00012699,2]
[405114343,1770850240546,-1459.95886722,0.00012699,2]
[405114344,1770850240556,-1459.95886722,0.00012699,2]
[405114345,1770850240566,-1459.95886722,0.00012699,2]
[405114346,1770850240576,-1459.95886722,0.00012699,2]
[405114347,1770850240586,-1459.95886722,0.00012699,2]
[405114348,1770850240596,-1459.95886722,0.00012699,2]
[405114349,1770850240606,-1459.95886722,0.00012699,2]
[405114350,1770850240618,-1437.14700992,0.00012699,2]
[405114351,1770850240628,-1437.14700992,0.00012699,2]
[405114352,1770850240638,-1437.14700992,0.00012699,2]
[405114353,1770850240648,-1437.14700992,0.00012699,2]
[405114354,1770850240659,-1437.14700992,0.00012699,2]
[405114355,1770850240669,-1437.14700992,0.00012699,2]
[405114356,1770850240679,-1437.14700992,0.00012699,2]
[405114357,1770850240688,-1437.14700992,0.00012699,2]
[405114358,1770850240698,-1437.14700992,0.00012699,2]
[405114359,1770850240708,-1437.14700992,0.00012699,2]
[405114360,1770850240718,-1437.14700992,0.00012699,2]
[405114361,1770850240728,-1437.14700992,0.00012699,2]
[405114362,1770850240739,-1437.14700992,0.00012699,2]
[405114363,1770850240748,-1437.14700992,0.00012699,2]
[405114364,1770850240758,-1437.14700992,0.00012699,2]
[405114365,1770850240768,-1437.14700992,0.00012699,2]
[405114366,1770850240778,-1437.14700992,0.00012699,2]
[405114367,1770850240788,-1437.14700992,0.00012699,2]
[405114368,1770850240798,-1437.14700992,0.00012699,2]
[405114369,1770850240808,-1437.14700992,0.00012699,2]
[405114370,1770850240818,-1437.14700992,0.00012699,2]
[405114371,1770850240828,-1437.14700992,0.00012699,2]
[405114372,1770850240838,-1437.14700992,0.00012699,2]
[405114373,1770850240848,-1437.14700992,0.00012699,2]
[405114374,1770850240857,-1437.14700992,0.00012699,2]
[405114375,1770850240867,-1437.14700992,0.00012699,2]
[405114376,1770850240877,-1437.14700992,0.00012699,2]
[405114377,1770850240887,-1437.14700992,0.00012699,2]
[405114378,1770850240897,-1437.14700989,0.00012699,2]
[405114379,1770850240906,-1437.14700989,0.00012699,2]
[405114380,1770850240916,-1437.14700989,0.00012699,2]
[405114381,1770850240926,-1437.14700989,0.00012699,2]
[405114382,1770850240936,-250.0,0.000127,2]
[405114383,1770850240947,-717.22172399,0.000127,2]
[405114384,1770850240957,-1057.55475839,0.000127,2]
[405114385,1770850240967,-3982.83088162,0.000127,2]
[405114386,1770850240977,-1142.63801699,0.000127,2]
[405114387,1770850240987,-3500000.0,0.000127,2]
[405114388,1770850240998,-167.43034797,0.00012739,2]
[405114389,1770850241008,-1430.489,0.00012739,2]
[405114390,1770850241018,-156.96,0.00012809,2]
[405114391,1770850241028,-999.99,0.00012898,2]
[405114392,1770850241039,-7061.78,0.00012898,2]
[405114393,1770850241049,-626.05,0.00012898,2]
[405114394,1770850241060,-150.99,0.00012898,2]
[405114395,1770850241070,-9999.99,0.00012898,2]
[405114396,1770850241080,-4615.42,0.00012899,2]
[405114397,1770850241091,-150.99,0.00012899,2]
[405114398,1770850241101,-1882.62,0.00012899,2]
[405114399,1770850241111,-9999.99,0.00012899,2]
[405114400,1770850241121,-167.020625,0.000129,2]
[405114401,1770850241132,-10000.0,0.00013,2]
[405114402,1770850241144,-222.37304921,0.00013085,2]
[405114403,1770850241154,-217.61561231,0.00013099,2]
[405114404,1770850241163,-863.315,0.00013185,2]
[405114405,1770850241174,-3064.7162,0.00013185,2]
[405114406,1770850241185,-1000.0,0.00013187,2]
[405114407,1770850241196,-4642.3711,0.00013187,2]
[405114408,1770850241206,-8805.48830097,0.00013224,2]
[405114409,1770850241217,-156.96,0.00013343,2]
[405114410,1770850241227,-158.57,0.00013375,2]
[405114411,1770850241237,-98533.51592741,0.000135,2]
[405114412,1770850241250,-539.52193569,0.00013698,2]
[405114413,1770850241261,-8805.48830097,0.00013808,2]
[405114414,1770850241271,-1680.0,0.00013859,2]
[405114415,1770850241281,-156.96,0.00013876,2]
[405114416,1770850241291,-222.37304917,0.00013888,2]
[405114417,1770850241301,-360.0,0.00013931,2]
[405114418,1770850241311,-701.03999964,0.00013969,2]
[405114419,1770850241321,-250.0,0.00013969,2]
[405114420,1770850241331,-167.02062498,0.0001415,2]
[405114421,1770850241342,-158.57,0.00014211,2]
[405114422,1770850241352,-500.0,0.00014274,2]
[405114423,1770850241362,-8805.48830097,0.00014393,2]
[405114424,1770850241373,-156.96,0.0001441,2]
[405114425,1770850241384,-1264.73302685,0.00014499,2]
[405114426,1770850241395,-222.37304917,0.0001469,2]
[405114427,1770850241407,-150.0,0.00014755,2]
[405114428,1770850241417,-156.96,0.00014944,2]
[405114429,1770850241427,-8805.48830097,0.00014977,2]
[405114430,1770850241437,-158.57,0.00015047,2]
[405114431,1770850241448,-1264.73302685,0.00015066,2]
[405114432,1770850241458,-250.5,0.00015068,2]
[405114433,1770850241468,-2728.87,0.00015165,2]
[405114434,1770850241478,-235.25,0.0001517,2]
[405114435,1770850241491,-345.24,0.0001517,2]
[405114436,1770850241502,-2351.0,0.00015245,2]
[405114437,1770850241512,-2240.69655474,0.0001527,2]
[405114438,1770850241523,-473.38822935,0.0001527,2]
[405114439,1770850241533,-167.02062498,0.000154,2]
[405114440,1770850241544,-156.96,0.00015477,2]
[405114441,1770850241557,-222.37304917,0.00015493,2]
[405114442,1770850241567,-8805.48830097,0.00015562,2]
[405114443,1770850241578,-1264.73302685,0.00015633,2]
[405114444,1770850241589,-158.57,0.00015883,2]
[405114445,1770850241598,-156.96,0.00016011,2]
[405114446,1770850241608,-500.0,0.00016027,2]
[405114447,1770850241619,-1900.0,0.00016082,2]
[405114448,1770850241629,-8805.48830097,0.00016146,2]
[405114449,1770850241639,-1264.73302685,0.000162,2]
[405114450,1770850241648,-222.37304917,0.00016295,2]
[405114451,1770850241658,-500.0,0.00016356,2]
[405114452,1770850241668,-500.0,0.00016356,2]
[405114453,1770850241678,-500.0,0.00016406,2]
[405114454,1770850241688,-1359.1,0.00016438,2]
[405114455,1770850241698,-250.5,0.00016438,2]
[405114456,1770850241708,-160.0,0.00016502,2]
[405114457,1770850241718,-250.0,0.00016534,2]
[405114458,1770850241728,-167.02062498,0.0001665,2]
[405114459,1770850241737,-158.57,0.00016719,2]
[405114460,1770850241749,-2829.0,0.0001672,2]
[405114461,1770850241759,-1000.0,0.00016727,2]
[405114462,1770850241770,-8805.48830097,0.00016731,2]
[405114463,1770850241779,-1264.73302685,0.00016766,2]
[405114464,1770850241789,-3292.0,0.00016769,2]
[405114465,1770850241800,-165.72983817,0.00016864,2]
[405114466,1770850241810,-1359.1,0.00016944,2]
[405114467,1770850241820,-841.0,0.0001704,2]
[405114468,1770850241830,-222.37304917,0.00017098,2]
[405114469,1770850241840,-411.55774058,0.00017099,2]
[405114470,1770850241849,-1000.0,0.0001726,2]
[405114471,1770850241859,-8805.48830097,0.00017315,2]
[405114472,1770850241869,-1264.73302685,0.00017333,2]
[405114473,1770850241879,-3000.0,0.000174,2]
[405114474,1770850241890,-1359.1,0.0001745,2]
[405114475,1770850241900,-1900.0,0.00017452,7]
[405114476,1770850241909,-3055.32,0.00017518,2]
[405114477,1770850241919,-1000.0,0.00017534,2]
[405114478,1770850241929,-1288.0,0.00017553,2]
[405114479,1770850241939,-1337.0,0.00017553,2]
[405114480,1770850241949,-617.0,0.00017553,2]
[405114481,1770850241959,-3487.0,0.00017553,2]
[405114482,1770850241969,-1273.0,0.00017553,2]
[405114483,1770850241979,-150.0,0.00017553,2]
[405114484,1770850241988,-1207.0,0.00017553,2]
[405114485,1770850242000,-918.0,0.00017553,2]
[405114486,1770850242285,-151.0,0.00017553,2]
[405114487,1770850242296,-213.0,0.00017553,2]
[405114488,1770850242306,-6590.0,0.00017553,2]
[405114489,1770850242317,-2449.0,0.00017553,2]
[405114490,1770850242327,-5966.0,0.00017553,2]
[405114491,1770850242337,-158.57,0.00017555,2]
[405114492,1770850242347,-2000.0,0.000176,2]
[405114493,1770850242357,-4189.81873464,0.0001764,2]
[405114494,1770850242367,-2829.0,0.0001768,2]
[405114495,1770850242378,-150.0,0.00017683,2]
[405114496,1770850242388,-150.0,0.00017686,2]
[405114497,1770850242397,-150.0,0.00017689,2]
[405114498,1770850242406,-150.0,0.00017695,2]
[405114499,1770850242417,-150.0,0.00017699,2]
[405114500,1770850242427,-150.0,0.00017724,2]
[405114501,1770850242437,-500.0,0.00017726,7]
[405114502,1770850242447,-1000.0,0.00017727,2]
[405114503,1770850242458,-1000.0,0.0001773,2]
[405114504,1770850242468,-1000.0,0.00017731,2]
[405114505,1770850242479,-1000.0,0.00017733,2]
[405114506,1770850242489,-1000.0,0.00017734,2]
[405114507,1770850242500,-150.0,0.00017735,2]
[405114508,1770850242510,-1000.0,0.00017736,2]
[405114509,1770850242520,-1000.0,0.00017744,2]
[405114510,1770850242530,-150.0,0.00017748,2]
[405114511,1770850242545,-150.0,0.00017751,2]
[405114512,1770850242555,-1000.0,0.00017751,2]
[405114513,1770850242565,-1000.0,0.00017752,2]
[405114514,1770850242576,-1000.0,0.00017753,2]
[405114515,1770850242586,-150.0,0.00017756,2]
[405114516,1770850242596,-1000.0,0.00017756,2]
[405114517,1770850242608,-150.0,0.00017758,2]
[405114518,1770850242618,-287.30101856,0.00017758,2]
[405114519,1770850242628,-150.0,0.00017763,2]
[405114520,1770850242638,-1000.0,0.00017765,2]
[405114521,1770850242648,-150.0,0.00017767,2]
[405114522,1770850242658,-1000.0,0.0001777,2]
[405114523,1770850242669,-1000.0,0.0001777,2]
[405114524,1770850242679,-150.0,0.00017771,2]
[405114525,1770850242688,-150.0,0.0001778,2]
[405114526,1770850242698,-1000.0,0.0001778,2]
[405114527,1770850242708,-1000.0,0.00017782,2]
[405114528,1770850242718,-150.0,0.00017783,2]
[405114529,1770850242728,-1000.0,0.00017786,2]
[405114530,1770850242738,-1000.0,0.00017797,2]
[405114531,1770850242749,-2000.0,0.000178,2]
[405114532,1770850242760,-1000.0,0.00017803,2]
[405114533,1770850242770,-1000.0,0.00017804,2]
[405114534,1770850242779,-150.0,0.00017805,2]
[405114535,1770850242789,-1000.0,0.00017806,2]
[405114536,1770850242799,-1000.0,0.00017806,2]
[405114537,1770850242809,-500.0,0.00017808,2]
[405114538,1770850242819,-150.0,0.00017808,2]
[405114539,1770850242829,-500.0,0.00017808,2]
[405114540,1770850242840,-500.0,0.00017808,2]
[405114542,1770850242850,-500.0,0.00017808,2]
[405114544,1770850242860,-500.0,0.00017808,2]
[405114546,1770850242870,-500.0,0.00017808,2]
[405114548,1770850242880,-500.0,0.00017808,2]
[405114550,1770850242889,-500.0,0.00017808,2]
[405114552,1770850242899,-500.0,0.00017808,2]
[405114554,1770850242910,-500.0,0.00017808,2]
[405114556,1770850242920,-500.0,0.00017808,2]
[405114558,1770850242930,-500.0,0.00017808,2]
[405114560,1770850242940,-500.0,0.00017808,2]
[405114562,1770850242950,-500.0,0.00017808,2]
[405114564,1770850242960,-1220.53378081,0.00017808,2]
[405114566,1770850242970,-1220.53378081,0.00017808,2]
[405114568,1770850242980,-1220.53378081,0.00017808,2]
[405114570,1770850242990,-1220.53378081,0.00017808,2]
[405114572,1770850243000,-1220.53378081,0.00017808,2]
[405114574,1770850243010,-1220.53378081,0.00017808,2]
[405114576,1770850243019,-1220.53378081,0.00017808,2]
[405114578,1770850243029,-1220.53378081,0.00017808,2]
[405114580,1770850243039,-1220.53378081,0.00017808,2]
[405114582,1770850243049,-1220.53378081,0.00017808,2]
[405114584,1770850243059,-1220.53378081,0.00017808,2]
[405114586,1770850243069,-2074.90742741,0.00017808,2]
[405114588,1770850243080,-1000.0,0.00017808,2]
[405114590,1770850243090,-1000.0,0.00017811,2]
[405114593,1770850243100,-2000.0,0.0001782,2]
[405114595,1770850243110,-2000.0,0.0001782,2]
[405114597,1770850243120,-1000.0,0.00017828,2]
[405114599,1770850243130,-1000.0,0.00017828,2]
[405114601,1770850243140,-1000.0,0.00017828,2]
[405114603,1770850243150,-100476.39903326,0.0001783,2]
[405114605,1770850243159,-1000.0,0.0001783,2]
[405114607,1770850243169,-150.0,0.00017832,2]
[405114609,1770850243178,-1000.0,0.00017832,2]
[405114611,1770850243187,-150.0,0.00017837,2]
[405114613,1770850243197,-150.0,0.00017839,2]
[405114615,1770850243206,-1000.0,0.00017839,2]
[405114617,1770850243216,-150.0,0.00017841,2]
[405114619,1770850243225,-1000.0,0.00017848,2]
[405114621,1770850243235,-150.0,0.00017849,2]